bitfinex-derivatives/quotes_BTCF0:USTF0_20250211
["timestamp","ask_amount","ask_price","bid_price","bid_amount"]
[1739289235279,0.002,97063.0,97062.0,0.21768119]
[1739289236176,0.003,97063.0,97062.0,0.01163749]
[1739289236872,0.01038733,97073.0,97062.0,0.01163749]
[1739289237187,0.3608,97075.0,97062.0,0.2061982]
[1739289237188,0.002,97063.0,97062.0,0.2061982]
[1739289237374,0.002,97063.0,97062.0,0.21768394]
[1739289237681,0.003,97063.0,97062.0,0.21868394]
[1739289238283,0.004,97063.0,97062.0,0.21768394]
[1739289238481,0.004,97063.0,97062.0,0.21767437]
[1739289238984,0.003,97063.0,97062.0,0.21867437]
[1739289239384,0.003,97063.0,97062.0,0.21767437]
[1739289239575,0.2060365,97066.0,97064.0,0.206039]
[1739289239775,0.2060365,97066.0,97065.0,0.01147617]
[1739289240085,0.2060416,97063.0,97062.0,0.0001546]
[1739289240275,0.2060416,97063.0,97062.0,0.01160202]
[1739289240483,0.2060416,97063.0,97062.0,0.01260202]
[1739289240677,0.2060416,97063.0,97062.0,0.21864572]
[1739289240883,0.2060416,97063.0,97062.0,0.2071983]
[1739289241077,0.2060416,97063.0,97062.0,0.21865905]
[1739289241892,0.3608,97067.0,97066.0,0.2060352]
[1739289242182,0.2060324,97068.0,97066.0,0.21750134]
[1739289242379,0.2060331,97067.0,97066.0,0.2060352]
[1739289242683,0.2060331,97067.0,97066.0,0.21750056]
[1739289243874,0.003,97068.0,97067.0,0.2060331]
[1739289244073,0.003,97068.0,97067.0,0.21749846]
[1739289244278,0.3608,97077.0,97076.0,0.206014]
[1739289244482,0.3608,97077.0,97076.0,0.21747936]
[1739289245387,0.3608,97077.0,97076.0,0.21760637]
[1739289245580,0.3608,97077.0,97076.0,0.21758161]
[1739289246277,0.3608,97077.0,97076.0,0.21858161]
[1739289247175,0.2090119,97077.0,97076.0,0.01256761]
[1739289247578,0.2090119,97077.0,97076.0,0.01156761]
[1739289247785,0.2100119,97077.0,97076.0,0.01164554]
[1739289248592,0.2100119,97077.0,97076.0,0.02303554]
[1739289248890,0.2070119,97077.0,97076.0,0.02303554]
[1739289249881,0.2100119,97077.0,97076.0,0.02303554]
[1739289250079,0.004,97077.0,97076.0,0.02303554]
[1739289250692,0.003,97077.0,97076.0,0.04159366]
[1739289250990,0.00154563,97083.0,97082.0,0.2060013]
[1739289251178,0.00154563,97083.0,97082.0,0.59700496]
[1739289251682,0.00154563,97083.0,97082.0,0.57844684]
[1739289253878,0.00154563,97083.0,97082.0,0.5668013]
[1739289254079,0.00154563,97083.0,97082.0,0.57828855]
[1739289254483,0.00154563,97083.0,97082.0,0.57828465]
[1739289254986,0.00154563,97083.0,97082.0,0.58857482]
[1739289255382,0.2395756,97095.0,97082.0,0.38257352]
[1739289255681,0.19002415,97102.0,97099.0,0.2059652]
[1739289255886,0.19002415,97102.0,97099.0,0.21744855]
[1739289256210,0.15422415,97102.0,97099.0,0.21744855]
[1739289256386,0.15422415,97102.0,97099.0,0.23354381]
[1739289256588,0.15422415,97102.0,97101.0,0.205961]
[1739289256781,0.15422415,97102.0,97101.0,0.23645881]
[1739289257188,0.15422415,97102.0,97101.0,0.25255407]
[1739289257892,0.18467044,97111.0,97110.0,0.2059419]
[1739289258085,0.18467044,97111.0,97110.0,0.23834355]
[1739289258487,0.18467044,97111.0,97110.0,0.25443881]
[1739289258884,0.1540474,97114.0,97110.0,0.25443881]
[1739289259189,0.1540474,97114.0,97111.0,0.02856151]
[1739289259389,0.1540474,97114.0,97112.0,0.21840395]
[1739289259589,0.1540474,97114.0,97113.0,0.01246625]
[1739289259786,0.1540474,97114.0,97113.0,0.02856151]
[1739289259995,0.1540474,97114.0,97113.0,0.02856541]
[1739289260891,0.1540474,97114.0,97113.0,0.02956541]
[1739289262195,0.1540474,97114.0,97113.0,0.04922277]
[1739289262395,0.1540474,97114.0,97113.0,0.05022277]
[1739289263593,0.3608,97130.0,97113.0,0.05022277]
[1739289263788,0.3608,97130.0,97120.0,0.12234262]
[1739289263989,0.3608,97130.0,97128.0,0.2059026]
[1739289264198,0.3608,97130.0,97129.0,0.01238179]
[1739289264502,0.3608,97130.0,97121.0,0.01609526]
[1739289264694,0.3608,97122.0,97121.0,0.01609526]
[1739289264895,0.3608,97122.0,97121.0,0.0123927]
[1739289265602,0.3608,97122.0,97121.0,0.02848526]
[1739289265992,0.3608,97122.0,97121.0,0.02948526]
[1739289266700,0.3608,97122.0,97121.0,0.01809256]
[1739289266896,0.3608,97122.0,97121.0,0.03040619]
[1739289269102,0.3608,97122.0,97121.0,0.03029809]
[1739289269697,0.2059149,97123.0,97121.0,0.01809256]
[1739289269904,0.3608,97122.0,97121.0,0.01809256]
[1739289270102,0.3608,97122.0,97121.0,0.002]
[1739289270403,0.2059149,97123.0,97121.0,0.01414634]
[1739289270603,0.2059149,97123.0,97122.0,0.01214546]
[1739289270803,0.2059149,97123.0,97121.0,0.002]
[1739289271707,0.2059149,97123.0,97122.0,0.01609234]
[1739289273309,0.2059149,97123.0,97122.0,0.02922861]
[1739289273500,0.2059149,97123.0,97122.0,0.01809234]
[1739289274101,0.2059149,97123.0,97122.0,0.03023207]
[1739289274302,0.2059149,97123.0,97122.0,0.01809234]
[1739289274716,0.2059149,97123.0,97122.0,0.03023278]
[1739289276243,0.3608,97125.0,97122.0,0.03023278]
[1739289276244,0.3608,97125.0,97124.0,0.2059122]
[1739289276468,0.3608,97125.0,97124.0,0.23760623]
[1739289276732,0.3608,97125.0,97124.0,0.25369857]
[1739289277528,0.3608,97125.0,97124.0,0.25469857]
[1739289278540,0.3608,97125.0,97124.0,0.25569857]
[1739289278930,0.3608,97125.0,97124.0,0.25609621]
[1739289279941,0.3608,97125.0,97124.0,0.26657705]
[1739289280138,0.3608,97125.0,97124.0,0.29139069]
[1739289281838,0.2058849,97137.0,97132.0,0.2058953]
[1739289282130,0.2058849,97137.0,97133.0,0.03209167]
[1739289282340,0.2058849,97137.0,97134.0,0.03209167]
[1739289282545,0.2058849,97137.0,97135.0,0.0329134]
[1739289282839,0.2058849,97137.0,97136.0,0.0329134]
[1739289283231,0.3608,97142.0,97136.0,0.07475117]
[1739289283526,0.3608,97142.0,97137.0,0.0329134]
[1739289283734,0.3608,97142.0,97140.0,0.2058782]
[1739289283921,0.3608,97142.0,97141.0,0.0329134]
[1739289284611,0.3608,97142.0,97141.0,0.03283343]
[1739289284919,0.3608,97142.0,97141.0,0.25480197]
[1739289285311,0.3608,97142.0,97141.0,0.25680197]
[1739289286109,0.3608,97142.0,97141.0,0.05092577]
[1739289286918,0.5666741,97142.0,97141.0,0.05092577]
[1739289287319,0.5666741,97142.0,97141.0,0.05068128]
[1739289287514,0.3608,97142.0,97141.0,0.05068128]
[1739289288223,0.3608,97142.0,97141.0,0.25655748]
[1739289290823,0.3608,97142.0,97141.0,0.25620948]
[1739289293128,0.3608,97142.0,97141.0,0.05033328]
[1739289293426,0.5666741,97142.0,97141.0,0.05033328]
[1739289294426,0.3608,97142.0,97141.0,0.03424094]
[1739289294933,0.3608,97142.0,97141.0,0.23926621]
[1739289295631,0.3608,97142.0,97141.0,0.23921582]
[1739289299026,0.3608,97142.0,97141.0,0.2391381]
[1739289299230,0.3608,97142.0,97141.0,0.21989969]
[1739289300638,0.566674,97142.0,97141.0,0.01402359]
[1739289301124,0.566674,97142.0,97127.0,0.18397525]
[1739289301125,0.3608,97142.0,97130.0,0.1175867]
[1739289301324,0.2058973,97131.0,97130.0,0.1175867]
[1739289301529,0.2058973,97131.0,97130.0,0.13673615]
[1739289302135,0.2058973,97131.0,97130.0,0.34263565]
[1739289302932,0.2058973,97131.0,97130.0,0.3234862]
[1739289303838,0.2058878,97136.0,97130.0,0.13653283]
[1739289304146,0.002,97131.0,97130.0,0.3244862]
[1739289304335,0.002,97131.0,97130.0,0.34346346]
[1739289304535,0.002,97131.0,97130.0,0.34346601]
[1739289304735,0.003,97131.0,97130.0,0.34346601]
[1739289304944,0.004,97131.0,97130.0,0.34246601]
[1739289305246,0.002,97131.0,97130.0,0.34246601]
[1739289305442,0.004,97131.0,97130.0,0.34246601]
[1739289305646,0.004,97131.0,97130.0,0.22487931]
[1739289306648,0.002,97131.0,97130.0,0.22487931]
[1739289306839,0.003,97131.0,97130.0,0.22487931]
[1739289308346,0.003,97131.0,97130.0,0.24097057]
[1739289311356,0.003,97131.0,97130.0,0.24116965]
[1739289312349,0.003,97131.0,97130.0,0.03527015]
[1739289312535,0.2088974,97131.0,97130.0,0.03527015]
[1739289312735,0.2088974,97131.0,97130.0,0.03523139]
[1739289312947,0.2088974,97131.0,97130.0,0.01609126]
[1739289313156,0.2088974,97131.0,97130.0,0.02804612]
[1739289313654,0.2088974,97131.0,97130.0,0.04717079]
[1739289314344,0.2078974,97131.0,97130.0,0.04717079]
[1739289315350,0.002,97131.0,97130.0,0.25307029]
[1739289315551,0.2078974,97131.0,97130.0,0.04717079]
[1739289316137,0.2078974,97131.0,97130.0,0.02804612]
[1739289316343,0.2068974,97131.0,97130.0,0.02804612]
[1739289316542,0.2078974,97131.0,97130.0,0.02804612]
[1739289317055,0.2078974,97131.0,97130.0,0.01195486]
[1739289317352,0.2078974,97131.0,97130.0,0.02804736]
[1739289317553,0.2078974,97131.0,97130.0,0.02904736]
[1739289317943,0.2078974,97131.0,97130.0,0.25430167]
[1739289318145,0.002,97131.0,97130.0,0.25430167]
[1739289318550,0.2078974,97131.0,97130.0,0.04840217]
[1739289320255,0.2068974,97131.0,97130.0,0.04740217]
[1739289320451,0.2078974,97131.0,97130.0,0.04740217]
[1739289320858,0.2058974,97131.0,97130.0,0.04740217]
[1739289321045,0.2078974,97131.0,97130.0,0.04840217]
[1739289323053,0.002,97131.0,97130.0,0.04869498]
[1739289323253,0.002,97131.0,97130.0,0.25459448]
[1739289323559,0.001,97131.0,97130.0,0.25459448]
[1739289323773,0.002,97131.0,97130.0,0.25459448]
[1739289324258,0.2078974,97131.0,97130.0,0.25459448]
[1739289324663,0.2068974,97131.0,97130.0,0.25459448]
[1739289324851,0.2078974,97131.0,97130.0,0.25459448]
[1739289325362,0.002,97131.0,97130.0,0.25359448]
[1739289327159,0.002,97131.0,97130.0,0.25350918]
[1739289327960,0.002,97131.0,97130.0,0.25450918]
[1739289329362,0.002,97131.0,97130.0,0.25448837]
[1739289330061,0.002,97131.0,97130.0,0.25348837]
[1739289330560,0.2078974,97131.0,97130.0,0.04758887]
[1739289334166,0.2078974,97131.0,97130.0,0.04858887]
[1739289336060,0.2078974,97131.0,97130.0,0.04845661]
[1739289337567,0.2078974,97131.0,97130.0,0.04840352]
[1739289337969,0.5686974,97131.0,97130.0,0.04840352]
[1739289338468,0.5686974,97131.0,97130.0,0.02913494]
[1739289339376,0.2078974,97131.0,97130.0,0.02913494]
[1739289339574,0.2078974,97131.0,97130.0,0.0291432]
[1739289342169,0.5686974,97131.0,97130.0,0.0291432]
[1739289342376,0.2059165,97122.0,97121.0,0.00015443]
[1739289342571,0.5667165,97122.0,97121.0,0.00015443]
[1739289342776,0.2059419,97110.0,97109.0,0.24655077]
[1739289342974,0.2059419,97110.0,97109.0,0.26579419]
[1739289343166,0.2059419,97110.0,97109.0,0.24655077]
[1739289343367,0.2059419,97110.0,97109.0,0.25704]
[1739289343678,0.5667419,97110.0,97109.0,0.25704]
[1739289343869,0.5667419,97110.0,97109.0,0.1318831]
[1739289344074,0.2059589,97102.0,97100.0,0.00015443]
[1739289344372,0.5667589,97102.0,97100.0,0.00015443]
[1739289344566,0.5627589,97102.0,97100.0,0.00015443]
[1739289344770,0.5607589,97102.0,97100.0,0.00015443]
[1739289345165,0.5607589,97102.0,97101.0,0.30796176]
[1739289345371,0.5617589,97102.0,97101.0,0.30796176]
[1739289346173,0.5647589,97102.0,97101.0,0.30796176]
[1739289346378,0.5647589,97102.0,97101.0,0.25386176]
[1739289346672,0.2059737,97095.0,97076.0,0.0359]
[1739289346869,0.2050056,97080.0,97079.0,0.00132]
[1739289347075,0.0514965,97090.0,97076.0,0.0359]
[1739289347568,0.2060119,97077.0,97076.0,0.0359]
[1739289347764,0.2050119,97077.0,97076.0,0.0359]
[1739289347976,0.2050119,97077.0,97076.0,0.27146996]
[1739289348279,0.2060075,97080.0,97079.0,0.2060072]
[1739289348471,0.2059888,97088.0,97077.0,0.3608]
[1739289348674,0.2059888,97088.0,97087.0,0.3608]
[1739289350985,0.2089888,97088.0,97087.0,0.3608]
[1739289351875,0.2179888,97088.0,97087.0,0.3618]
[1739289352479,0.2179888,97088.0,97087.0,0.5677907]
[1739289355673,0.2059555,97104.0,97087.0,0.38661068]
[1739289355872,0.2059555,97104.0,97100.0,0.2059613]
[1739289355873,0.205955,97104.0,97100.0,0.2059613]
[1739289356078,0.205955,97104.0,97101.0,0.2059601]
[1739289356479,0.00154515,97112.0,97098.0,0.0359]
[1739289356786,0.00154515,97112.0,97104.0,0.2059545]
[1739289356983,0.001,97104.0,97102.0,0.2059588]
[1739289357186,0.001,97104.0,97103.0,0.2059568]
[1739289357586,0.2059508,97106.0,97103.0,0.2059568]
[1739289357786,0.205953,97105.0,97103.0,0.2059568]
[1739289358089,0.001,97104.0,97103.0,0.2059568]
[1739289358290,0.005,97104.0,97103.0,0.2059568]
[1739289358791,0.004,97104.0,97101.0,0.0349]
[1739289359084,0.2099548,97104.0,97101.0,0.0349]
[1739289359287,0.2099548,97104.0,97101.0,0.24086]
[1739289359983,0.004,97104.0,97102.0,0.01609564]
[1739289360288,0.2059568,97103.0,97102.0,0.01609564]
[1739289360480,0.2059652,97099.0,97098.0,0.0488313]
[1739289361308,0.2049652,97099.0,97098.0,0.0129313]
[1739289361483,0.3658,97104.0,97089.0,0.2059854]
[1739289361791,0.2059716,97096.0,97090.0,0.12234262]
[1739289361997,0.2059716,97096.0,97090.0,0.32832672]
[1739289362290,0.2059716,97096.0,97095.0,0.01329613]
[1739289362485,0.2059716,97096.0,97095.0,0.00015451]
[1739289363587,0.2059716,97096.0,97095.0,0.36095451]
[1739289364197,0.004,97099.0,97098.0,0.2059674]
[1739289364386,0.2059603,97102.0,97098.0,0.2059674]
[1739289364590,0.205962,97101.0,97099.0,0.0351]
[1739289365685,0.2179,97108.0,97099.0,0.0351]
[1739289365686,0.001,97102.0,97099.0,0.0351]
[1739289365895,0.001,97102.0,97101.0,0.205961]
[1739289366096,0.00015451,97115.0,97101.0,0.01162299]
[1739289366392,0.20608731,97115.0,97111.0,0.2059398]
[1739289367790,0.20608731,97115.0,97111.0,0.21771866]
[1739289368402,0.00554515,97112.0,97111.0,0.21872182]
[1739289368899,0.00554515,97112.0,97111.0,0.23481582]
[1739289369088,0.00654515,97112.0,97111.0,0.23581582]
[1739289369789,0.00654515,97112.0,97111.0,0.23578058]
[1739289370488,0.00654515,97112.0,97111.0,0.23234641]
[1739289375492,0.21248285,97112.0,97111.0,0.02640661]
[1739289376003,0.21248285,97112.0,97111.0,0.01374678]
[1739289376196,0.21248285,97112.0,97111.0,0.002]
[1739289377296,0.21248285,97112.0,97111.0,0.01336896]
[1739289378197,0.21248285,97112.0,97111.0,0.01336418]
[1739289379199,0.21248285,97112.0,97111.0,0.01337834]
[1739289379400,0.21248285,97112.0,97111.0,0.01337839]
[1739289379700,0.21248285,97112.0,97111.0,0.002]
[1739289384197,0.21248285,97112.0,97111.0,0.01337155]
[1739289384404,0.21248285,97112.0,97111.0,0.002]
[1739289384814,0.21248285,97112.0,97111.0,0.01337261]
[1739289385011,0.21248285,97112.0,97111.0,0.01333645]
[1739289385402,0.24298285,97112.0,97111.0,0.01333645]
[1739289385807,0.24298285,97112.0,97111.0,0.002]
[1739289386014,0.2059716,97096.0,97095.0,0.00015451]
[1739289386206,0.2059716,97096.0,97095.0,0.01138931]
[1739289386509,0.2059716,97096.0,97095.0,0.00015451]
[1739289387405,0.2069716,97096.0,97095.0,0.00015451]
[1739289389707,0.2129716,97096.0,97095.0,0.00015451]
[1739289391318,0.2435716,97096.0,97095.0,0.00015451]
[1739289392205,0.0694,97096.0,97070.0,0.12234262]
[1739289392520,0.0694,97096.0,97069.0,0.3912]
[1739289392521,0.2060183,97074.0,97073.0,0.01127528]
[1739289393218,0.2060225,97072.0,97071.0,0.032]
[1739289393421,0.2060225,97072.0,97071.0,0.04313451]
[1739289393422,0.1900225,97072.0,97071.0,0.04313451]
[1739289393608,0.1900225,97072.0,97071.0,0.04313311]
[1739289393809,0.1900225,97072.0,97071.0,0.032]
[1739289394018,0.1860225,97072.0,97071.0,0.032]
[1739289394519,0.1860225,97072.0,97071.0,0.035]
[1739289395020,0.1860225,97072.0,97071.0,0.04627174]
[1739289395219,0.1860225,97072.0,97071.0,0.035]
[1739289395519,0.1780225,97072.0,97071.0,0.035]
[1739289396114,0.1780225,97072.0,97071.0,0.039]
[1739289396518,0.00015451,97083.0,97071.0,0.039]
[1739289396721,0.2060106,97078.0,97077.0,0.5668096]
[1739289398119,0.2060106,97078.0,97077.0,0.2060096]
[1739289398727,0.00015451,97083.0,97080.0,0.206004]
[1739289399023,0.2060034,97081.0,97075.0,0.5668155]
[1739289399619,0.002,97078.0,97075.0,0.5668155]
[1739289400011,0.002,97078.0,97077.0,0.2060119]
[1739289401929,0.2060045,97081.0,97077.0,0.2060119]
[1739289402225,0.2070045,97081.0,97077.0,0.2060119]
[1739289402827,0.002,97078.0,97075.0,0.3608]
[1739289403020,0.002,97078.0,97077.0,0.3608]
[1739289404624,0.2060089,97079.0,97077.0,0.3608]
[1739289405427,0.002,97078.0,97077.0,0.3608]
[1739289405735,0.002,97078.0,97077.0,0.37217075]
[1739289406129,0.2080089,97079.0,97077.0,0.37217075]
[1739289406329,0.2080089,97079.0,97077.0,0.3608]
[1739289406537,0.2080089,97079.0,97078.0,0.01136209]
[1739289407341,0.2080089,97079.0,97078.0,0.01135044]
[1739289407940,0.2060089,97079.0,97078.0,0.01135044]
[1739289408843,0.2090089,97079.0,97078.0,0.01135044]
[1739289409545,0.2090089,97079.0,97078.0,0.01129465]
[1739289409745,0.2090089,97079.0,97078.0,0.21730445]
[1739289410839,0.2090089,97079.0,97078.0,0.57810445]
[1739289411242,0.2090089,97079.0,97078.0,0.37209465]
[1739289411444,0.2090089,97079.0,97078.0,0.01129465]
[1739289412139,0.2090089,97079.0,97078.0,0.37209465]
[1739289412547,0.2090089,97079.0,97078.0,0.01129465]
[1739289415246,0.2090077,97079.0,97078.0,0.01138853]
[1739289416643,0.2090077,97079.0,97078.0,0.37218853]
[1739289417737,0.2090077,97079.0,97078.0,0.37220572]
[1739289418132,0.2090077,97079.0,97078.0,0.01140572]
[1739289420347,0.2060267,97070.0,97069.0,0.01276748]
[1739289420544,0.2060267,97070.0,97069.0,0.01138393]
[1739289421236,0.2060267,97070.0,97069.0,0.21741283]
[1739289421435,0.2060267,97070.0,97069.0,0.01538393]
[1739289421742,0.2060267,97070.0,97069.0,0.01738393]
[1739289422551,0.0313,97078.0,97069.0,0.37818393]
[1739289422749,0.2179,97080.0,97077.0,0.5668101]
[1739289422947,0.2179,97080.0,97078.0,0.01138393]
[1739289423145,0.2179,97080.0,97079.0,0.01138393]
[1739289423451,0.4239055,97080.0,97079.0,0.01138393]
[1739289424248,0.4269055,97080.0,97079.0,0.01138393]
[1739289424950,0.4279055,97080.0,97079.0,0.01238393]
[1739289425546,0.4289055,97080.0,97079.0,0.01238393]
[1739289425941,0.4279055,97080.0,97079.0,0.01238393]
[1739289426147,0.4289055,97080.0,97079.0,0.01238393]
[1739289426450,0.2229,97080.0,97079.0,0.01238393]
[1739289427044,0.005,97080.0,97079.0,0.01238393]
[1739289428354,0.2110055,97080.0,97079.0,0.01238393]
[1739289431157,0.005,97080.0,97079.0,0.21839153]
[1739289431342,0.00015451,97083.0,97079.0,0.01238393]
[1739289431549,0.00015451,97083.0,97082.0,0.2060013]
[1739289431750,0.00015451,97083.0,97082.0,0.21738523]
[1739289432653,0.00115451,97083.0,97082.0,0.21738523]
[1739289433355,0.00615451,97083.0,97082.0,0.23624182]
[1739289433956,0.00215451,97083.0,97082.0,0.23624182]
[1739289434158,0.00715451,97083.0,97082.0,0.2523397]
[1739289434957,0.00615451,97083.0,97082.0,0.2523397]
[1739289435357,0.00415451,97083.0,97082.0,0.2523397]
[1739289435552,0.00515451,97083.0,97082.0,0.2523397]
[1739289435858,0.00515451,97083.0,97082.0,0.23624182]
[1739289436458,0.00515451,97083.0,97082.0,0.23634487]
[1739289439462,0.00415451,97083.0,97082.0,0.23634487]
[1739289439660,0.00615451,97083.0,97082.0,0.23634487]
[1739289440257,0.00715451,97083.0,97082.0,0.23734487]
[1739289440655,0.00715451,97083.0,97082.0,0.21867165]
[1739289440861,0.00715451,97083.0,97082.0,0.23732881]
[1739289441062,0.00715451,97083.0,97082.0,0.23731829]
[1739289441559,0.21315371,97083.0,97082.0,0.01266013]
[1739289442564,0.21315371,97083.0,97082.0,0.001]
[1739289442762,0.27505371,97083.0,97082.0,0.001]
[1739289455369,0.63585371,97083.0,97082.0,0.001]
[1739289455873,0.2060246,97071.0,97065.0,0.0304]
[1739289456074,0.2060331,97067.0,97066.0,0.01155871]
[1739289456278,0.0515055,97073.0,97064.0,0.01247244]
[1739289456575,0.2370352,97066.0,97065.0,0.01155673]
[1739289457171,0.2340352,97066.0,97065.0,0.01855673]
[1739289457675,0.2340352,97066.0,97065.0,0.02159791]
[1739289458170,0.2350352,97066.0,97065.0,0.02159791]
[1739289459274,0.2350352,97066.0,97065.0,0.02158364]
[1739289459677,0.2340352,97066.0,97065.0,0.01458364]
[1739289459877,0.2350352,97066.0,97065.0,0.02058364]
[1739289461376,0.2350352,97066.0,97065.0,0.0206202]
[1739289463482,0.2350352,97066.0,97065.0,0.02060797]
[1739289465485,0.2350352,97066.0,97065.0,0.009]
[1739289465779,0.2350352,97066.0,97065.0,0.02056941]
[1739289466174,0.2350352,97066.0,97065.0,0.02054852]
[1739289466577,0.2350352,97066.0,97065.0,0.009]
[1739289467981,0.2350352,97066.0,97065.0,0.02048739]
[1739289469678,0.2350352,97066.0,97065.0,0.02045319]
[1739289472169,0.2070352,97066.0,97065.0,0.02045319]
[1739289474276,0.2070352,97066.0,97065.0,0.009]
[1739289474473,0.2070352,97066.0,97065.0,0.02041418]
[1739289475880,0.2070352,97066.0,97065.0,0.02033089]
[1739289476280,0.5678352,97066.0,97065.0,0.02033089]
[1739289476481,0.3618,97066.0,97046.0,0.2449894]
[1739289476685,0.2060607,97054.0,97046.0,0.2449894]
[1739289476887,0.2060607,97054.0,97053.0,0.19584293]
[1739289477486,0.2060607,97054.0,97053.0,0.20854043]
[1739289478383,0.2070607,97054.0,97053.0,0.21454043]
[1739289478981,0.2070607,97054.0,97053.0,0.22254043]
[1739289479583,0.2070607,97054.0,97053.0,0.21454043]
[1739289479783,0.2080607,97054.0,97053.0,0.22254043]
[1739289479984,0.5688607,97054.0,97053.0,0.21120634]
[1739289480185,0.5688607,97054.0,97053.0,0.0266975]
[1739289480488,0.2080607,97054.0,97053.0,0.03801769]
[1739289480781,0.2080607,97054.0,97053.0,0.0266975]
[1739289481373,0.2080607,97054.0,97053.0,0.03803593]
[1739289481580,0.2080607,97054.0,97053.0,0.0266975]
[1739289482777,0.2080607,97054.0,97053.0,0.03803642]
[1739289483684,0.2080607,97054.0,97053.0,0.03809229]
[1739289486890,0.002,97054.0,97053.0,0.03809229]
[1739289487092,0.002,97054.0,97053.0,0.24415509]
[1739289487488,0.002,97054.0,97053.0,0.2327603]
[1739289487688,0.002,97054.0,97053.0,0.24412165]
[1739289489993,0.002,97054.0,97053.0,0.26255232]
[1739289490192,0.002,97054.0,97053.0,0.26270803]
[1739289490895,0.002,97054.0,97053.0,0.24427841]
[1739289491682,0.002,97054.0,97053.0,0.24423564]
[1739289498501,0.002,97054.0,97053.0,0.24402901]
[1739289499594,0.2080607,97054.0,97053.0,0.24402901]
[1739289499996,0.2080607,97054.0,97053.0,0.2327603]
[1739289502101,0.2080607,97054.0,97053.0,0.03786099]
[1739289502401,0.2080607,97054.0,97053.0,0.03786128]
[1739289502702,0.2080607,97054.0,97053.0,0.0266975]
[1739289504196,0.2080607,97054.0,97053.0,0.014]
[1739289505508,0.2060777,97046.0,97045.0,0.18605436]
[1739289505901,0.2060777,97046.0,97045.0,0.00154552]
[1739289506205,0.3608,97049.0,97044.0,0.00015451]
[1739289506401,0.2389798,97045.0,97044.0,0.00015451]
[1739289506602,0.2319798,97045.0,97044.0,0.00015451]
[1739289507510,0.2319798,97045.0,97044.0,0.00115451]
[1739289509401,0.2319798,97045.0,97044.0,0.00015451]
[1739289509603,0.2339798,97045.0,97044.0,0.00015451]
[1739289511011,0.2061095,97031.0,97030.0,0.12234262]
[1739289511203,0.2061138,97029.0,97028.0,0.3622]
[1739289511398,0.2061138,97029.0,97028.0,0.3608]
[1739289512213,0.2071138,97029.0,97028.0,0.37249548]
[1739289513815,0.2396138,97029.0,97028.0,0.37249548]
[1739289514707,0.2386138,97029.0,97028.0,0.37249548]
[1739289515615,0.2376138,97029.0,97028.0,0.37249548]
[1739289515813,0.2386138,97029.0,97028.0,0.37249548]
[1739289517420,0.2071138,97029.0,97028.0,0.37249548]
[1739289519421,0.2061138,97029.0,97028.0,0.37249548]
[1739289521323,0.00015459,97038.0,97028.0,0.37249548]
[1739289521516,0.2061086,97032.0,97029.0,0.2061138]
[1739289521713,0.2061086,97032.0,97030.0,0.0321]
[1739289522119,0.2061095,97031.0,97030.0,0.0321]
[1739289522325,0.2061032,97034.0,97032.0,0.2061067]
[1739289523324,0.2061055,97033.0,97031.0,0.0326]
[1739289523723,0.2061074,97032.0,97031.0,0.0326]
[1739289526419,0.2091074,97032.0,97031.0,0.0326]
[1739289528421,0.3638,97032.0,97028.0,0.01169548]
[1739289528619,0.2061329,97020.0,97019.0,0.00015459]
[1739289530528,0.2071329,97020.0,97019.0,0.01238003]
[1739289530727,0.2071329,97020.0,97019.0,0.00015459]
[1739289532932,0.2061329,97020.0,97019.0,0.00015459]
[1739289533133,0.2101329,97020.0,97019.0,0.00015459]
[1739289534025,0.2111329,97020.0,97019.0,0.00015459]
[1739289536931,0.2121329,97020.0,97019.0,0.00015459]
[1739289537438,0.2111329,97020.0,97019.0,0.00015459]
[1739289537733,0.2121329,97020.0,97019.0,0.00015459]
[1739289538938,0.2131329,97020.0,97019.0,0.00015459]
[1739289540541,0.2061447,97015.0,97013.0,0.001546]
[1739289540727,0.0614,97019.0,97003.0,0.18450884]
[1739289540935,0.2061586,97008.0,97003.0,0.19630905]
[1739289541134,0.0322,97007.0,97003.0,0.19630905]
[1739289542344,0.0322,97007.0,97003.0,0.01180021]
[1739289542533,0.0322,97007.0,97000.0,0.28450884]
[1739289542928,0.2061733,97001.0,97000.0,0.28450884]
[1739289543435,0.206168,97004.0,97000.0,0.28450884]
[1739289544339,0.001,97001.0,97000.0,0.28450884]
[1739289545935,0.207168,97004.0,97000.0,0.28450884]
[1739289546136,0.2061706,97003.0,97000.0,0.28450884]
[1739289546337,0.2393706,97003.0,97000.0,0.28450884]
[1739289546731,0.2393706,97003.0,97000.0,0.1]
[1739289546935,0.001,97001.0,97000.0,0.1]
[1739289547537,0.2483706,97003.0,97000.0,0.1]
[1739289547832,0.2503706,97003.0,97000.0,0.1]
[1739289548031,0.0442,97003.0,97000.0,0.1]
[1739289548231,0.002,97001.0,97000.0,0.1]
[1739289548943,0.0442,97003.0,97000.0,0.1]
[1739289549445,0.009,97001.0,97000.0,0.1]
[1739289550150,0.2503707,97003.0,97000.0,0.1]
[1739289550646,0.002,97001.0,97000.0,0.1]
[1739289550845,0.2081733,97001.0,97000.0,0.1]
[1739289551045,0.2171733,97001.0,97000.0,0.1]
[1739289551747,0.2151733,97001.0,97000.0,0.1]
[1739289552046,0.4414,97001.0,96995.0,0.00010373]
[1739289552349,0.2061839,96996.0,96995.0,0.00010373]
[1739289555154,0.2091839,96996.0,96995.0,0.00010373]
[1739289555551,0.2201839,96996.0,96995.0,0.00010373]
[1739289555947,0.014,96996.0,96995.0,0.00010373]
[1739289558747,0.2201839,96996.0,96995.0,0.00010373]
[1739289559843,0.5809839,96996.0,96995.0,0.00010373]
[1739289560051,0.2062005,96989.0,96986.0,0.01184239]
[1739289560252,0.2062017,96988.0,96985.0,0.3608]
[1739289561055,0.2062017,96988.0,96985.0,0.37265414]
[1739289561644,0.2393038,96987.0,96985.0,0.37265414]
[1739289561846,0.2062052,96986.0,96985.0,0.3608]
[1739289562147,0.206219,96980.0,96972.0,0.0635]
[1739289562547,0.206219,96980.0,96972.0,0.07528057]
[1739289564956,0.207219,96980.0,96972.0,0.07528057]
[1739289565855,0.206219,96980.0,96972.0,0.07528057]
[1739289566251,0.2062062,96986.0,96972.0,0.07528057]
[1739289566462,0.0331,96987.0,96972.0,0.07528057]
[1739289566763,0.2062173,96981.0,96972.0,0.07528057]
[1739289567159,0.2062062,96986.0,96972.0,0.07528057]
[1739289567469,0.2062174,96981.0,96972.0,0.07528057]
[1739289567757,0.2062182,96980.0,96972.0,0.07528057]
[1739289567951,0.18751917,96987.0,96972.0,0.07528057]
[1739289568154,0.2062148,96982.0,96972.0,0.07528057]
[1739289568350,0.2062164,96981.0,96972.0,0.07528057]